[Event "Titled Tuesday Blitz March 28 Late 2023"]
[White "Zampronha, Wladimir Camilo"]
[Black "Matute Escobar, Roxanny"]
[WhiteFideId "2103087"]
[BlackFideId "3926028"]
[WhiteElo "2176"]
[BlackElo "1732"]
[Result "0-1"]
[Round "03"]
[TimeControl "180+2"]
[Date "2023.03.28"]
[WhiteClock "0:00:13"]
[BlackClock "0:00:08"]

1. e4 {[%clk 0:03:00]}  c5 {[%clk 0:02:59]} 2. Nf3 {[%clk 0:03:01]}  d6 {[%clk 0:03:00]} 3. d4 {[%clk 0:03:02]}  cxd4 {[%clk 0:03:00]} 4. Nxd4 {[%clk 0:03:02]}  Nf6 {[%clk 0:03:01]} 5. Nc3 {[%clk 0:03:03]}  g6 {[%clk 0:03:01]} 6. Be3 {[%clk 0:03:02]}  Bg7 {[%clk 0:03:01]} 7. f3 {[%clk 0:03:03]}  O-O {[%clk 0:03:02]} 8. Qd2 {[%clk 0:03:03]}  Nc6 {[%clk 0:03:03]} 9. O-O-O {[%clk 0:03:03]}  Bd7 {[%clk 0:02:57]} 10. h4 {[%clk 0:03:01]}  h5 {[%clk 0:02:57]} 11. Bc4 {[%clk 0:02:54]}  Rc8 {[%clk 0:02:57]} 12. Bb3 {[%clk 0:02:53]}  Ne5 {[%clk 0:02:49]} 13. Bg5 {[%clk 0:02:50]}  Rc5 {[%clk 0:02:49]} 14. f4 {[%clk 0:02:37]}  Neg4 {[%clk 0:02:36]} 15. Qe2 {[%clk 0:02:27]}  b5 {[%clk 0:02:27]} 16. f5 {[%clk 0:02:25]}  Kh7 {[%clk 0:02:26]} 17. Nf3 {[%clk 0:02:14]}  gxf5 {[%clk 0:02:15]} 18. exf5 {[%clk 0:02:06]}  Bxf5 {[%clk 0:02:15]} 19. Kb1 {[%clk 0:01:58]}  a5 {[%clk 0:02:13]} 20. Nd4 {[%clk 0:01:52]}  Bg6 {[%clk 0:01:53]} 21. Ndxb5 {[%clk 0:01:47]}  Qb6 {[%clk 0:01:30]} 22. a4 {[%clk 0:01:46]}  Rxc3 {[%clk 0:01:21]} 23. Nxc3 {[%clk 0:01:42]}  Qxb3 {[%clk 0:01:21]} 24. Kc1 {[%clk 0:01:25]}  Qb6 {[%clk 0:01:15]} 25. Qxe7 {[%clk 0:01:23]}  Rb8 {[%clk 0:01:11]} 26. Nb5 {[%clk 0:01:20]}  Ne4 {[%clk 0:00:58]} 27. Rhe1 {[%clk 0:01:05]}  Rb7 {[%clk 0:00:41]} 28. Qd8 {[%clk 0:00:41]}  Qc5 {[%clk 0:00:29]} 29. Qxa5 {[%clk 0:00:38]}  Nef2 {[%clk 0:00:15]} 30. Rd2 {[%clk 0:00:37]}  Ne4 {[%clk 0:00:13]} 31. Rde2 {[%clk 0:00:34]}  Qe5 {[%clk 0:00:13]} 32. c3 {[%clk 0:00:31]}  Ngf2 {[%clk 0:00:13]} 33. Qa8 {[%clk 0:00:28]}  Nd3+ {[%clk 0:00:13]} 34. Kb1 {[%clk 0:00:27]}  Nxe1 {[%clk 0:00:13]} 35. Qxb7 {[%clk 0:00:26]}  Nxc3+ {[%clk 0:00:11]} 36. Ka1 {[%clk 0:00:24]}  Qxe2 {[%clk 0:00:09]} 37. Nxc3 {[%clk 0:00:22]}  Qc2 {[%clk 0:00:09]} 38. a5 {[%clk 0:00:17]}  Bxc3 {[%clk 0:00:08]} 39. bxc3 {[%clk 0:00:17]}  Qxc3+ {[%clk 0:00:09]} 40. Ka2 {[%clk 0:00:18]}  Qc2+ {[%clk 0:00:08]} 41. Qb2 {[%clk 0:00:16]}  Qa4+ {[%clk 0:00:08]} 42. Qa3 {[%clk 0:00:16]}  Bb1+ {[%clk 0:00:07]} 43. Kb2 {[%clk 0:00:16]}  Qxa3+ {[%clk 0:00:08]} 44. Kxa3 {[%clk 0:00:16]}  Bd3 {[%clk 0:00:09]} 45. Kb4 {[%clk 0:00:13]}  Nxg2 {[%clk 0:00:09]} 46. Kc3 {[%clk 0:00:13]}  Ba6 {[%clk 0:00:08]} 47. Kd4 {[%clk 0:00:14]}  Kg6 {[%clk 0:00:09]} 48. Kd5 {[%clk 0:00:14]}  Kf5 {[%clk 0:00:09]} 49. Kxd6 {[%clk 0:00:14]}  Kg4 {[%clk 0:00:09]} 50. Ke7 {[%clk 0:00:13]}  f5 {[%clk 0:00:09]} 51. Kf6 {[%clk 0:00:14]}  f4 {[%clk 0:00:07]} 52. Kg6 {[%clk 0:00:14]}  Nxh4+ {[%clk 0:00:07]} 53. Bxh4 {[%clk 0:00:12]}  Kxh4 {[%clk 0:00:08]} 54. Kf5 {[%clk 0:00:13]}  f3 {[%clk 0:00:08]} 0-1


[Site "https://www.chess.com"]

[Event "Titled Tuesday Blitz March 28 Late 2023"]
[White "Maluco_do_Natal_00"]
[Black "Nery Junior, Jose Antonio"]
[BlackFideId "2104822"]
[WhiteElo "2033"]
[BlackElo "2197"]
[Result "0-1"]
[Round "03"]
[TimeControl "180+2"]
[Date "2023.03.28"]
[WhiteClock "0:00:01"]
[BlackClock "0:00:18"]

1. e4 {[%clk 0:02:59]}  c5 {[%clk 0:02:30]} 2. Nf3 {[%clk 0:02:55]}  d6 {[%clk 0:02:31]} 3. d4 {[%clk 0:02:55]}  cxd4 {[%clk 0:02:32]} 4. Nxd4 {[%clk 0:02:56]}  Nf6 {[%clk 0:02:32]} 5. Nc3 {[%clk 0:02:56]}  a6 {[%clk 0:02:33]} 6. Be3 {[%clk 0:02:56]}  e5 {[%clk 0:02:34]} 7. Nb3 {[%clk 0:02:56]}  Be6 {[%clk 0:02:34]} 8. Qd2 {[%clk 0:02:56]}  Be7 {[%clk 0:02:35]} 9. f3 {[%clk 0:02:56]}  h5 {[%clk 0:02:35]} 10. O-O-O {[%clk 0:02:55]}  Nbd7 {[%clk 0:02:34]} 11. h3 {[%clk 0:02:49]}  h4 {[%clk 0:02:34]} 12. f4 {[%clk 0:02:33]}  Qc7 {[%clk 0:02:26]} 13. f5 {[%clk 0:02:30]}  Bc4 {[%clk 0:02:21]} 14. Bg5 {[%clk 0:02:16]}  b5 {[%clk 0:02:10]} 15. Bxc4 {[%clk 0:01:38]}  bxc4 {[%clk 0:02:11]} 16. Na1 {[%clk 0:01:14]}  Rb8 {[%clk 0:02:11]} 17. Rhe1 {[%clk 0:00:53]}  Qb7 {[%clk 0:02:04]} 18. b3 {[%clk 0:00:48]}  Rh5 {[%clk 0:01:55]} 19. Bxf6 {[%clk 0:00:46]}  Nxf6 {[%clk 0:01:56]} 20. Nd5 {[%clk 0:00:26]}  Nxd5 {[%clk 0:01:47]} 21. Qxd5 {[%clk 0:00:23]}  cxb3 {[%clk 0:01:37]} 22. cxb3 {[%clk 0:00:13]}  Rc8+ {[%clk 0:01:27]} 23. Kb1 {[%clk 0:00:12]}  Qxd5 {[%clk 0:01:13]} 24. Rxd5 {[%clk 0:00:13]}  Rg5 {[%clk 0:01:13]} 25. Re2 {[%clk 0:00:13]}  Rg3 {[%clk 0:01:08]} 26. Nc2 {[%clk 0:00:11]}  Rgc3 {[%clk 0:00:34]} 27. Ne3 {[%clk 0:00:10]}  Rb8 {[%clk 0:00:28]} 28. Kb2 {[%clk 0:00:09]}  Rc6 {[%clk 0:00:26]} 29. Rc2 {[%clk 0:00:07]}  Rxc2+ {[%clk 0:00:18]} 30. Kxc2 {[%clk 0:00:06]}  Kd7 {[%clk 0:00:18]} 31. Nc4 {[%clk 0:00:05]}  Kc6 {[%clk 0:00:17]} 32. Ra5 {[%clk 0:00:04]}  Ra8 {[%clk 0:00:17]} 33. Kd3 {[%clk 0:00:02]}  Bd8 {[%clk 0:00:17]} 34. Rd5 {[%clk 0:00:02]}  Bc7 {[%clk 0:00:17]} 35. a4 {[%clk 0:00:02]}  f6 {[%clk 0:00:18]} 36. Kc2 {[%clk 0:00:02]}  Rb8 {[%clk 0:00:18]} 37. Rd3 {[%clk 0:00:01]}  Rg8 {[%clk 0:00:18]} 0-1


[Site "https://www.chess.com"]

[Event "Titled Tuesday Blitz March 28 Late 2023"]
[White "Nakamura, Hikaru"]
[Black "Bortnyk, Mykola"]
[WhiteFideId "2016192"]
[BlackFideId "14120836"]
[WhiteElo "2879"]
[BlackElo "2582"]
[Result "1-0"]
[Round "04"]
[TimeControl "180+2"]
[Date "2023.03.28"]
[WhiteClock "0:01:11"]
[BlackClock "0:00:04"]

1. e4 {[%clk 0:03:00]}  Nf6 {[%clk 0:03:00]} 2. e5 {[%clk 0:02:53]}  Nd5 {[%clk 0:03:00]} 3. d4 {[%clk 0:02:53]}  d6 {[%clk 0:03:01]} 4. c4 {[%clk 0:02:53]}  Nb6 {[%clk 0:03:01]} 5. f4 {[%clk 0:02:54]}  dxe5 {[%clk 0:03:02]} 6. fxe5 {[%clk 0:02:55]}  Nc6 {[%clk 0:03:02]} 7. Be3 {[%clk 0:02:54]}  Bf5 {[%clk 0:03:03]} 8. Nc3 {[%clk 0:02:53]}  e6 {[%clk 0:03:04]} 9. Nf3 {[%clk 0:02:54]}  Qd7 {[%clk 0:03:04]} 10. h3 {[%clk 0:02:48]}  O-O-O {[%clk 0:03:03]} 11. Rc1 {[%clk 0:02:38]}  f6 {[%clk 0:03:04]} 12. exf6 {[%clk 0:01:56]}  gxf6 {[%clk 0:03:04]} 13. Be2 {[%clk 0:01:56]}  Rg8 {[%clk 0:03:02]} 14. g4 {[%clk 0:01:56]}  Bg6 {[%clk 0:03:00]} 15. Kf2 {[%clk 0:01:53]}  h5 {[%clk 0:02:56]} 16. c5 {[%clk 0:01:52]}  Nd5 {[%clk 0:02:45]} 17. Nxd5 {[%clk 0:01:52]}  exd5 {[%clk 0:02:45]} 18. Nh4 {[%clk 0:01:51]}  Be4 {[%clk 0:02:45]} 19. Rg1 {[%clk 0:01:51]}  Kb8 {[%clk 0:02:09]} 20. Qd2 {[%clk 0:01:51]}  hxg4 {[%clk 0:02:08]} 21. hxg4 {[%clk 0:01:52]}  Rh8 {[%clk 0:02:06]} 22. Nf3 {[%clk 0:01:52]}  f5 {[%clk 0:02:00]} 23. gxf5 {[%clk 0:01:41]}  Qxf5 {[%clk 0:02:00]} 24. Rcf1 {[%clk 0:01:40]}  Bxc5 {[%clk 0:01:42]} 25. dxc5 {[%clk 0:01:38]}  d4 {[%clk 0:01:43]} 26. Bf4 {[%clk 0:01:38]}  Rhf8 {[%clk 0:01:15]} 27. Kg3 {[%clk 0:01:35]}  d3 {[%clk 0:00:59]} 28. Bd1 {[%clk 0:01:33]}  Ne7 {[%clk 0:00:39]} 29. Ng5 {[%clk 0:01:25]}  Qg6 {[%clk 0:00:36]} 30. Bg4 {[%clk 0:01:25]}  Bf5 {[%clk 0:00:25]} 31. Bf3 {[%clk 0:01:25]}  Rg8 {[%clk 0:00:24]} 32. Kf2 {[%clk 0:01:25]}  Bd7 {[%clk 0:00:12]} 33. Bxc7+ {[%clk 0:01:10]}  Kxc7 {[%clk 0:00:12]} 34. Qf4+ {[%clk 0:01:11]}  Kc8 {[%clk 0:00:12]} 35. Nf7 {[%clk 0:01:11]}  Qe6 {[%clk 0:00:04]} 36. Nd6+ {[%clk 0:01:11]}  Kb8 {[%clk 0:00:04]} 37. Nb5+ {[%clk 0:01:11]} 1-0


[Site "https://www.chess.com"]

[Event "Titled Tuesday Blitz March 28 Late 2023"]
[White "Bortnyk, Olexandr"]
[Black "Mekhitarian, Krikor Sevag"]
[WhiteFideId "14120828"]
[BlackFideId "2107660"]
[WhiteElo "2734"]
[BlackElo "2604"]
[Result "1-0"]
[Round "04"]
[TimeControl "180+2"]
[Date "2023.03.28"]
[WhiteClock "0:00:19"]
[BlackClock "0:00:06"]

1. d4 {[%clk 0:03:00]}  Nf6 {[%clk 0:02:59]} 2. Nc3 {[%clk 0:03:00]}  d5 {[%clk 0:02:59]} 3. Bf4 {[%clk 0:03:01]}  a6 {[%clk 0:02:56]} 4. e3 {[%clk 0:03:00]}  Bf5 {[%clk 0:02:45]} 5. Nf3 {[%clk 0:03:00]}  e6 {[%clk 0:02:45]} 6. Ne5 {[%clk 0:03:00]}  h6 {[%clk 0:02:41]} 7. Bd3 {[%clk 0:02:59]}  Bxd3 {[%clk 0:02:40]} 8. cxd3 {[%clk 0:02:59]}  Bd6 {[%clk 0:02:39]} 9. O-O {[%clk 0:02:59]}  O-O {[%clk 0:02:39]} 10. Qb3 {[%clk 0:02:58]}  b6 {[%clk 0:02:34]} 11. h3 {[%clk 0:02:49]}  Nfd7 {[%clk 0:02:31]} 12. Rac1 {[%clk 0:02:26]}  Bxe5 {[%clk 0:02:28]} 13. dxe5 {[%clk 0:02:22]}  c5 {[%clk 0:02:26]} 14. d4 {[%clk 0:02:17]}  Nc6 {[%clk 0:02:22]} 15. Rfd1 {[%clk 0:02:17]}  c4 {[%clk 0:02:11]} 16. Qc2 {[%clk 0:02:17]}  Nb4 {[%clk 0:02:08]} 17. Qe2 {[%clk 0:02:18]}  Nd3 {[%clk 0:02:06]} 18. Rc2 {[%clk 0:02:12]}  b5 {[%clk 0:02:02]} 19. a3 {[%clk 0:02:05]}  Rb8 {[%clk 0:02:00]} 20. Rxd3 {[%clk 0:02:03]}  cxd3 {[%clk 0:01:59]} 21. Qxd3 {[%clk 0:02:04]}  Rc8 {[%clk 0:01:59]} 22. Re2 {[%clk 0:02:02]}  Nb6 {[%clk 0:01:56]} 23. e4 {[%clk 0:02:01]}  Kh8 {[%clk 0:01:49]} 24. Bd2 {[%clk 0:01:51]}  Nc4 {[%clk 0:01:08]} 25. Bc1 {[%clk 0:01:45]}  dxe4 {[%clk 0:01:01]} 26. Nxe4 {[%clk 0:01:46]}  Nxe5 {[%clk 0:01:01]} 27. Qd1 {[%clk 0:01:38]}  Nc6 {[%clk 0:00:53]} 28. Be3 {[%clk 0:01:35]}  Ne7 {[%clk 0:00:52]} 29. Bf4 {[%clk 0:01:27]}  Nf5 {[%clk 0:00:50]} 30. Rd2 {[%clk 0:01:27]}  Qd5 {[%clk 0:00:50]} 31. Nc3 {[%clk 0:01:26]}  Qc4 {[%clk 0:00:50]} 32. g4 {[%clk 0:01:22]}  Nh4 {[%clk 0:00:47]} 33. Bg3 {[%clk 0:01:21]}  Ng6 {[%clk 0:00:48]} 34. h4 {[%clk 0:01:17]}  Rfd8 {[%clk 0:00:43]} 35. g5 {[%clk 0:01:11]}  hxg5 {[%clk 0:00:42]} 36. hxg5 {[%clk 0:01:09]}  Kg8 {[%clk 0:00:41]} 37. Kh2 {[%clk 0:01:06]}  a5 {[%clk 0:00:41]} 38. Ne4 {[%clk 0:01:06]}  Qd5 {[%clk 0:00:38]} 39. Qg4 {[%clk 0:00:57]}  Qf5 {[%clk 0:00:38]} 40. Qxf5 {[%clk 0:00:56]}  exf5 {[%clk 0:00:39]} 41. Nd6 {[%clk 0:00:57]}  f4 {[%clk 0:00:34]} 42. Nxc8 {[%clk 0:00:58]}  fxg3+ {[%clk 0:00:34]} 43. Kxg3 {[%clk 0:00:59]}  Rxc8 {[%clk 0:00:35]} 44. d5 {[%clk 0:00:59]}  Kf8 {[%clk 0:00:35]} 45. d6 {[%clk 0:01:00]}  Ne5 {[%clk 0:00:30]} 46. Rd5 {[%clk 0:00:59]}  Nd7 {[%clk 0:00:22]} 47. Rxb5 {[%clk 0:00:58]}  a4 {[%clk 0:00:23]} 48. Ra5 {[%clk 0:00:55]}  Rb8 {[%clk 0:00:21]} 49. Rxa4 {[%clk 0:00:47]}  Rxb2 {[%clk 0:00:21]} 50. Ra7 {[%clk 0:00:47]}  Ke8 {[%clk 0:00:21]} 51. a4 {[%clk 0:00:48]}  Rb6 {[%clk 0:00:18]} 52. Ra8+ {[%clk 0:00:48]}  Rb8 {[%clk 0:00:18]} 53. Ra7 {[%clk 0:00:49]}  g6 {[%clk 0:00:17]} 54. a5 {[%clk 0:00:49]}  Kd8 {[%clk 0:00:17]} 55. a6 {[%clk 0:00:47]}  Rb3+ {[%clk 0:00:17]} 56. Kf4 {[%clk 0:00:45]}  Ra3 {[%clk 0:00:17]} 57. Ra8+ {[%clk 0:00:45]}  Nb8 {[%clk 0:00:15]} 58. Rxb8+ {[%clk 0:00:46]}  Kd7 {[%clk 0:00:16]} 59. Rb6 {[%clk 0:00:44]}  Ra5 {[%clk 0:00:15]} 60. f3 {[%clk 0:00:39]}  Ke6 {[%clk 0:00:15]} 61. Kg4 {[%clk 0:00:29]}  Ra4+ {[%clk 0:00:15]} 62. f4 {[%clk 0:00:29]}  Kd7 {[%clk 0:00:15]} 63. Kf3 {[%clk 0:00:29]}  Ke6 {[%clk 0:00:15]} 64. Kg3 {[%clk 0:00:25]}  Kd7 {[%clk 0:00:15]} 65. Rb7+ {[%clk 0:00:25]}  Ke6 {[%clk 0:00:13]} 66. a7 {[%clk 0:00:25]}  Kxd6 {[%clk 0:00:13]} 67. Rxf7 {[%clk 0:00:25]}  Kd5 {[%clk 0:00:11]} 68. f5 {[%clk 0:00:19]}  gxf5 {[%clk 0:00:11]} 69. g6 {[%clk 0:00:20]}  Ke6 {[%clk 0:00:11]} 70. Rb7 {[%clk 0:00:19]}  Ra3+ {[%clk 0:00:06]} 71. Kf2 {[%clk 0:00:19]}  Ra4 {[%clk 0:00:06]} 72. g7 {[%clk 0:00:19]} 1-0


[Site "https://www.chess.com"]

[Event "Titled Tuesday Blitz March 28 Late 2023"]
[White "Caruana, Fabiano"]
[Black "Grigoriants, Sergey"]
[WhiteFideId "2020009"]
[BlackFideId "4130804"]
[WhiteElo "2818"]
[BlackElo "2502"]
[Result "1-0"]
[Round "04"]
[TimeControl "180+2"]
[Date "2023.03.28"]
[WhiteClock "0:01:00"]
[BlackClock "0:00:01"]

1. e4 {[%clk 0:03:00]}  e5 {[%clk 0:02:55]} 2. Nf3 {[%clk 0:02:59]}  Nc6 {[%clk 0:02:55]} 3. Bb5 {[%clk 0:03:00]}  a6 {[%clk 0:02:54]} 4. Ba4 {[%clk 0:03:00]}  Nf6 {[%clk 0:02:54]} 5. d3 {[%clk 0:03:00]}  Bc5 {[%clk 0:02:52]} 6. c3 {[%clk 0:03:00]}  d6 {[%clk 0:02:47]} 7. O-O {[%clk 0:03:00]}  b5 {[%clk 0:02:41]} 8. Bb3 {[%clk 0:02:59]}  h6 {[%clk 0:02:40]} 9. a4 {[%clk 0:02:58]}  Rb8 {[%clk 0:02:40]} 10. h3 {[%clk 0:02:56]}  O-O {[%clk 0:02:39]} 11. Re1 {[%clk 0:02:57]}  Re8 {[%clk 0:02:32]} 12. Nbd2 {[%clk 0:02:56]}  Bb6 {[%clk 0:02:28]} 13. Nf1 {[%clk 0:02:55]}  Na5 {[%clk 0:02:27]} 14. Bc2 {[%clk 0:02:51]}  c5 {[%clk 0:02:27]} 15. Ng3 {[%clk 0:02:47]}  Nc6 {[%clk 0:02:27]} 16. Nh2 {[%clk 0:02:25]}  d5 {[%clk 0:02:04]} 17. axb5 {[%clk 0:02:22]}  axb5 {[%clk 0:02:04]} 18. Qf3 {[%clk 0:02:23]}  dxe4 {[%clk 0:01:42]} 19. dxe4 {[%clk 0:02:23]}  c4 {[%clk 0:01:42]} 20. Ng4 {[%clk 0:02:16]}  Nxg4 {[%clk 0:00:52]} 21. hxg4 {[%clk 0:02:17]}  f6 {[%clk 0:00:52]} 22. Nf5 {[%clk 0:02:12]}  Bc5 {[%clk 0:00:46]} 23. g3 {[%clk 0:02:07]}  Ne7 {[%clk 0:00:31]} 24. Kg2 {[%clk 0:01:43]}  Bb7 {[%clk 0:00:27]} 25. Rh1 {[%clk 0:01:24]}  Nxf5 {[%clk 0:00:27]} 26. gxf5 {[%clk 0:01:25]}  Bf8 {[%clk 0:00:16]} 27. Be3 {[%clk 0:01:20]}  Qc7 {[%clk 0:00:13]} 28. Qg4 {[%clk 0:01:18]}  Kf7 {[%clk 0:00:02]} 29. Qg6+ {[%clk 0:01:04]}  Ke7 {[%clk 0:00:03]} 30. Rad1 {[%clk 0:01:03]}  Red8 {[%clk 0:00:03]} 31. Bxh6 {[%clk 0:01:01]}  Rxd1 {[%clk 0:00:02]} 32. Rxd1 {[%clk 0:01:02]}  Rd8 {[%clk 0:00:01]} 33. Bxg7 {[%clk 0:01:00]} 1-0


[Site "https://www.chess.com"]

[Event "Titled Tuesday Blitz March 28 Late 2023"]
[White "Ibarra Jerez, Jose Carlos"]
[Black "Firouzja, Alireza"]
[WhiteFideId "2226332"]
[BlackFideId "12573981"]
[WhiteElo "2638"]
[BlackElo "2904"]
[Result "0-1"]
[Round "04"]
[TimeControl "180+2"]
[Date "2023.03.28"]
[WhiteClock "0:00:11"]
[BlackClock "0:00:50"]

1. e4 {[%clk 0:03:00]}  c5 {[%clk 0:02:59]} 2. Ne2 {[%clk 0:02:57]}  Nf6 {[%clk 0:02:54]} 3. Nbc3 {[%clk 0:02:56]}  d6 {[%clk 0:02:53]} 4. g3 {[%clk 0:02:46]}  g6 {[%clk 0:02:43]} 5. Bg2 {[%clk 0:02:45]}  Bg7 {[%clk 0:02:43]} 6. d4 {[%clk 0:02:43]}  cxd4 {[%clk 0:02:43]} 7. Nxd4 {[%clk 0:02:43]}  O-O {[%clk 0:02:42]} 8. O-O {[%clk 0:02:43]}  Bg4 {[%clk 0:02:38]} 9. f3 {[%clk 0:02:31]}  Bd7 {[%clk 0:02:37]} 10. Be3 {[%clk 0:02:31]}  Nc6 {[%clk 0:02:38]} 11. Qd2 {[%clk 0:02:16]}  Rc8 {[%clk 0:02:32]} 12. Nde2 {[%clk 0:02:02]}  a6 {[%clk 0:02:31]} 13. Rad1 {[%clk 0:02:00]}  b5 {[%clk 0:02:25]} 14. Nd5 {[%clk 0:01:54]}  Nxd5 {[%clk 0:02:03]} 15. exd5 {[%clk 0:01:54]}  Ne5 {[%clk 0:02:04]} 16. b3 {[%clk 0:01:54]}  b4 {[%clk 0:02:05]} 17. Nd4 {[%clk 0:01:44]}  Rc3 {[%clk 0:02:01]} 18. Bh6 {[%clk 0:01:43]}  Bxh6 {[%clk 0:01:51]} 19. Qxh6 {[%clk 0:01:43]}  Qa5 {[%clk 0:01:49]} 20. Qh4 {[%clk 0:01:31]}  Re8 {[%clk 0:01:34]} 21. f4 {[%clk 0:01:24]}  Ng4 {[%clk 0:01:33]} 22. Bh3 {[%clk 0:01:24]}  Nf6 {[%clk 0:01:16]} 23. Bxd7 {[%clk 0:01:19]}  Nxd7 {[%clk 0:01:17]} 24. Qg5 {[%clk 0:00:34]}  Nf6 {[%clk 0:01:07]} 25. Nf5 {[%clk 0:00:30]}  Qc5+ {[%clk 0:01:02]} 26. Kh1 {[%clk 0:00:29]}  Ne4 {[%clk 0:00:51]} 27. Nh6+ {[%clk 0:00:12]}  Kg7 {[%clk 0:00:50]} 28. Nf5+ {[%clk 0:00:11]}  Kh8 {[%clk 0:00:50]} 0-1


[Site "https://www.chess.com"]

[Event "Titled Tuesday Blitz March 28 Late 2023"]
[White "Fedoseev, Vladimir"]
[Black "Fressinet, Laurent"]
[WhiteFideId "24130737"]
[BlackFideId "608742"]
[WhiteElo "2752"]
[BlackElo "2633"]
[Result "1-0"]
[Round "04"]
[TimeControl "180+2"]
[Date "2023.03.28"]
[WhiteClock "0:00:11"]
[BlackClock "0:00:02"]

1. e4 {[%clk 0:03:00]}  c5 {[%clk 0:03:00]} 2. Nf3 {[%clk 0:03:00]}  Nc6 {[%clk 0:02:59]} 3. Bb5 {[%clk 0:03:00]}  g6 {[%clk 0:02:59]} 4. O-O {[%clk 0:02:59]}  Bg7 {[%clk 0:02:59]} 5. Re1 {[%clk 0:02:59]}  e5 {[%clk 0:02:59]} 6. Bxc6 {[%clk 0:02:58]}  dxc6 {[%clk 0:02:58]} 7. d3 {[%clk 0:02:55]}  Ne7 {[%clk 0:02:49]} 8. a3 {[%clk 0:02:53]}  a5 {[%clk 0:02:48]} 9. Nbd2 {[%clk 0:02:44]}  f6 {[%clk 0:02:36]} 10. Nc4 {[%clk 0:02:33]}  Be6 {[%clk 0:02:35]} 11. Be3 {[%clk 0:02:29]}  b6 {[%clk 0:02:28]} 12. Nfd2 {[%clk 0:02:26]}  a4 {[%clk 0:02:26]} 13. Nb1 {[%clk 0:01:54]}  O-O {[%clk 0:02:19]} 14. Nc3 {[%clk 0:01:53]}  Nd5 {[%clk 0:02:09]} 15. Qd2 {[%clk 0:01:23]}  Nxe3 {[%clk 0:01:58]} 16. Qxe3 {[%clk 0:01:17]}  b5 {[%clk 0:01:52]} 17. Nd2 {[%clk 0:01:15]}  Qd4 {[%clk 0:01:51]} 18. Qg3 {[%clk 0:01:08]}  Bh6 {[%clk 0:01:50]} 19. Nf3 {[%clk 0:01:01]}  Qd6 {[%clk 0:01:49]} 20. Qh4 {[%clk 0:00:58]}  Bg7 {[%clk 0:01:47]} 21. h3 {[%clk 0:00:52]}  Ra7 {[%clk 0:01:34]} 22. Red1 {[%clk 0:00:49]}  Qc7 {[%clk 0:01:24]} 23. Nd2 {[%clk 0:00:46]}  Qf7 {[%clk 0:01:19]} 24. f3 {[%clk 0:00:43]}  Rd8 {[%clk 0:01:17]} 25. Qf2 {[%clk 0:00:43]}  Bf8 {[%clk 0:01:17]} 26. Kh2 {[%clk 0:00:41]}  Rad7 {[%clk 0:01:16]} 27. Qe2 {[%clk 0:00:37]}  Bh6 {[%clk 0:01:12]} 28. g3 {[%clk 0:00:36]}  c4 {[%clk 0:01:12]} 29. Nf1 {[%clk 0:00:31]}  cxd3 {[%clk 0:01:11]} 30. Rxd3 {[%clk 0:00:32]}  Bc4 {[%clk 0:01:03]} 31. Rxd7 {[%clk 0:00:31]}  Rxd7 {[%clk 0:01:00]} 32. Qg2 {[%clk 0:00:30]}  Bxf1 {[%clk 0:00:52]} 33. Rxf1 {[%clk 0:00:30]}  Qc4 {[%clk 0:00:49]} 34. Nb1 {[%clk 0:00:25]}  Be3 {[%clk 0:00:44]} 35. Re1 {[%clk 0:00:24]}  Bb6 {[%clk 0:00:39]} 36. Qe2 {[%clk 0:00:19]}  Qxe2+ {[%clk 0:00:31]} 37. Rxe2 {[%clk 0:00:19]}  Rd1 {[%clk 0:00:28]} 38. Nc3 {[%clk 0:00:19]}  Rf1 {[%clk 0:00:28]} 39. Kg2 {[%clk 0:00:17]}  Rg1+ {[%clk 0:00:28]} 40. Kh2 {[%clk 0:00:18]}  Rf1 {[%clk 0:00:23]} 41. Kg2 {[%clk 0:00:17]}  Rg1+ {[%clk 0:00:21]} 42. Kh2 {[%clk 0:00:17]}  Rc1 {[%clk 0:00:22]} 43. Na2 {[%clk 0:00:16]}  Rb1 {[%clk 0:00:18]} 44. c3 {[%clk 0:00:16]}  c5 {[%clk 0:00:16]} 45. c4 {[%clk 0:00:16]}  bxc4 {[%clk 0:00:12]} 46. Nc3 {[%clk 0:00:16]}  Rc1 {[%clk 0:00:08]} 47. Nxa4 {[%clk 0:00:17]}  Ba5 {[%clk 0:00:09]} 48. Nxc5 {[%clk 0:00:16]}  c3 {[%clk 0:00:09]} 49. Nb3 {[%clk 0:00:15]}  cxb2 {[%clk 0:00:09]} 50. Rxb2 {[%clk 0:00:15]}  Bc3 {[%clk 0:00:09]} 51. Ra2 {[%clk 0:00:13]}  Rb1 {[%clk 0:00:04]} 52. Nc5 {[%clk 0:00:14]}  Rb5 {[%clk 0:00:03]} 53. Nd3 {[%clk 0:00:13]}  Rb3 {[%clk 0:00:03]} 54. Kg2 {[%clk 0:00:13]}  Ba5 {[%clk 0:00:02]} 55. Nc5 {[%clk 0:00:13]}  Rb5 {[%clk 0:00:02]} 56. Nd3 {[%clk 0:00:12]}  Rb3 {[%clk 0:00:02]} 57. Nc5 {[%clk 0:00:10]}  Rb5 {[%clk 0:00:02]} 58. Nd7 {[%clk 0:00:10]}  Kf7 {[%clk 0:00:02]} 59. a4 {[%clk 0:00:11]} 1-0


[Site "https://www.chess.com"]

[Event "Titled Tuesday Blitz March 28 Late 2023"]
[White "Kovalev, Vladislav"]
[Black "Sadhwani, Raunak"]
[WhiteFideId "13504398"]
[BlackFideId "35093487"]
[WhiteElo "2555"]
[BlackElo "2631"]
[Result "0-1"]
[Round "04"]
[TimeControl "180+2"]
[Date "2023.03.28"]
[WhiteClock "0:00:01"]
[BlackClock "0:00:05"]

1. e4 {[%clk 0:02:57]}  g6 {[%clk 0:03:00]} 2. d4 {[%clk 0:02:56]}  Bg7 {[%clk 0:03:01]} 3. Be3 {[%clk 0:02:55]}  d6 {[%clk 0:03:01]} 4. Qd2 {[%clk 0:02:47]}  c6 {[%clk 0:02:59]} 5. c4 {[%clk 0:02:45]}  a6 {[%clk 0:02:50]} 6. a4 {[%clk 0:02:24]}  a5 {[%clk 0:02:49]} 7. Nc3 {[%clk 0:02:24]}  Na6 {[%clk 0:02:50]} 8. Bd3 {[%clk 0:02:16]}  Nf6 {[%clk 0:02:49]} 9. f3 {[%clk 0:02:17]}  O-O {[%clk 0:02:47]} 10. Nge2 {[%clk 0:02:17]}  Nb4 {[%clk 0:02:46]} 11. O-O {[%clk 0:02:13]}  e5 {[%clk 0:02:18]} 12. d5 {[%clk 0:02:13]}  Qe7 {[%clk 0:02:17]} 13. Rac1 {[%clk 0:02:09]}  Nd7 {[%clk 0:02:07]} 14. Bb1 {[%clk 0:02:00]}  Rd8 {[%clk 0:02:06]} 15. dxc6 {[%clk 0:01:36]}  bxc6 {[%clk 0:02:03]} 16. Rfd1 {[%clk 0:01:37]}  Bf8 {[%clk 0:02:00]} 17. Na2 {[%clk 0:01:16]}  Rb8 {[%clk 0:01:37]} 18. Nxb4 {[%clk 0:01:16]}  Rxb4 {[%clk 0:01:38]} 19. c5 {[%clk 0:01:14]}  dxc5 {[%clk 0:01:04]} 20. Ba2 {[%clk 0:00:55]}  Re8 {[%clk 0:00:38]} 21. Qc2 {[%clk 0:00:35]}  Ba6 {[%clk 0:00:30]} 22. Ng3 {[%clk 0:00:20]}  c4 {[%clk 0:00:30]} 23. Bd2 {[%clk 0:00:17]}  Nb6 {[%clk 0:00:26]} 24. Kh1 {[%clk 0:00:13]}  c5 {[%clk 0:00:19]} 25. Ne2 {[%clk 0:00:05]}  Rxa4 {[%clk 0:00:15]} 26. b3 {[%clk 0:00:04]}  cxb3 {[%clk 0:00:15]} 27. Bxb3 {[%clk 0:00:04]}  Bxe2 {[%clk 0:00:16]} 28. Bxa4 {[%clk 0:00:04]}  Bxd1 {[%clk 0:00:16]} 29. Rxd1 {[%clk 0:00:02]}  Nxa4 {[%clk 0:00:15]} 30. Qxa4 {[%clk 0:00:03]}  Rd8 {[%clk 0:00:12]} 31. Bxa5 {[%clk 0:00:03]}  Rd4 {[%clk 0:00:07]} 32. Rxd4 {[%clk 0:00:01]}  exd4 {[%clk 0:00:08]} 33. Qc4 {[%clk 0:00:01]}  Qa7 {[%clk 0:00:06]} 34. Qb5 {[%clk 0:00:01]}  c4 {[%clk 0:00:05]} 35. h3 {[%clk 0:00:01]}  c3 {[%clk 0:00:05]} 36. Bb6 {[%clk 0:00:01]}  Qa1+ {[%clk 0:00:05]} 0-1


[Site "https://www.chess.com"]